fUSD/lending_fUSD_20240514
["ID","MTS","AMOUNT","RATE_DAILY","PERIOD"]
[326961475,1715647840803,-150.0,0.00012965,2]
[326961476,1715647840814,-150.0,0.00012966,2]
[326961477,1715647840824,-150.0,0.00012967,2]
[326961478,1715647840833,-150.0,0.00012971,2]
[326961479,1715647840843,-5800.0,0.00012974,2]
[326961480,1715647840852,-150.0,0.00012974,2]
[326961481,1715647840862,-150.0,0.00012976,2]
[326961482,1715647840872,-150.0,0.00012976,2]
[326961483,1715647840881,-150.0,0.00012978,2]
[326961484,1715647840891,-150.0,0.00012979,2]
[326961486,1715647840900,-150.0,0.0001298,2]
[326961488,1715647840910,-5800.0,0.00012982,2]
[326961490,1715647840919,-150.0,0.00012982,2]
[326961492,1715647840929,-150.0,0.00012983,2]
[326961494,1715647840939,-150.0,0.00012983,2]
[326961495,1715647840948,-150.0,0.00012984,2]
[326961496,1715647840958,-150.0,0.00012985,2]
[326961497,1715647840967,-1976.04458025,0.00012987,2]
[326961498,1715647840977,-155.32,0.0001299,2]
[326961499,1715647840986,-155.32,0.0001299,2]
[326961500,1715647840995,-155.32,0.0001299,2]
[326961501,1715647841004,-155.32,0.0001299,2]
[326961502,1715647841013,-155.32,0.0001299,2]
[326961503,1715647841023,-155.32,0.0001299,2]
[326961504,1715647841032,-155.32,0.0001299,2]
[326961505,1715647841043,-155.32,0.0001299,2]
[326961506,1715647841056,-155.32,0.0001299,2]
[326961507,1715647841065,-155.32,0.0001299,2]
[326961508,1715647841075,-155.32,0.0001299,2]
[326961509,1715647841084,-155.32,0.0001299,2]
[326961510,1715647841094,-155.32,0.0001299,2]
[326961511,1715647841103,-155.32,0.0001299,2]
[326961512,1715647841112,-155.32,0.0001299,2]
[326961513,1715647841122,-155.32,0.0001299,2]
[326961514,1715647841135,-155.32,0.0001299,2]
[326961515,1715647841145,-155.32,0.0001299,2]
[326961516,1715647841154,-155.32,0.0001299,2]
[326961517,1715647841163,-155.32,0.0001299,2]
[326961518,1715647841172,-155.32,0.0001299,2]
[326961519,1715647841182,-155.32,0.0001299,2]
[326961520,1715647841192,-155.32,0.0001299,2]
[326961521,1715647841202,-155.32,0.0001299,2]
[326961522,1715647841212,-155.32,0.0001299,2]
[326961523,1715647841223,-5800.0,0.0001299,2]
[326961524,1715647841234,-150.0,0.00012991,2]
[326961525,1715647841243,-150.0,0.00012992,2]
[326961526,1715647841253,-150.0,0.00012992,2]
[326961527,1715647841263,-2921.8750041,0.00012993,2]
[326961528,1715647841273,-355.06028639,0.00012994,2]
[326961529,1715647841282,-500.0,0.00012994,2]
[326961530,1715647841292,-574.49,0.00012994,2]
[326961531,1715647841301,-500.0,0.00012994,2]
[326961532,1715647841310,-500.0,0.00012994,2]
[326961533,1715647841320,-500.0,0.00012994,2]
[326961534,1715647841329,-500.0,0.00012994,2]
[326961535,1715647841339,-500.0,0.00012994,2]
[326961536,1715647841348,-311.25,0.00012995,2]
[326961537,1715647841357,-500.0,0.00012995,2]
[326961538,1715647841366,-642.88,0.00012995,2]
[326961539,1715647841376,-626.2,0.00012995,2]
[326961540,1715647841385,-550.24,0.00012995,2]
[326961541,1715647841394,-500.0,0.00012995,2]
[326961542,1715647841405,-150.0,0.00012995,2]
[326961543,1715647841415,-571.74,0.00012997,2]
[326961544,1715647841425,-500.0,0.00012997,2]
[326961545,1715647841434,-194.61,0.00012997,2]
[326961546,1715647841445,-3025.55522352,0.00012998,2]
[326961547,1715647841455,-5000.0,0.00012998,2]
[326961548,1715647841464,-3079.49301559,0.00012998,2]
[326961549,1715647841474,-19584.64571004,0.00012998,2]
[326961550,1715647841483,-364.38705348,0.00012998,2]
[326961551,1715647841490,-344.74389302,0.00012998,2]
[326961552,1715647841498,-157.50965258,0.00012998,2]
[326961553,1715647841505,-485.68547373,0.00012998,2]
[326961554,1715647841513,-500.0,0.00012998,2]
[326961555,1715647841523,-500.0,0.00012998,2]
[326961556,1715647841532,-500.0,0.00012998,2]
[326961557,1715647841543,-500.0,0.00012998,2]
[326961558,1715647841553,-456.3,0.00012998,2]
[326961559,1715647841563,-500.0,0.00012998,2]
[326961560,1715647841573,-500.0,0.00012998,2]
[326961561,1715647841582,-543.13,0.00012998,2]
[326961562,1715647841592,-382.26,0.00012998,2]
[326961563,1715647841601,-500.0,0.00012998,2]
[326961564,1715647841611,-500.0,0.00012998,2]
[326961565,1715647841620,-500.0,0.00012998,2]
[326961566,1715647841630,-500.0,0.00012998,2]
[326961567,1715647841640,-500.0,0.00012998,2]
[326961568,1715647841649,-500.0,0.00012998,2]
[326961569,1715647841658,-500.0,0.00012998,2]
[326961570,1715647841667,-395.84,0.00012998,2]
[326961571,1715647841677,-500.0,0.00012998,2]
[326961572,1715647841687,-595.28,0.00012998,2]
[326961573,1715647841697,-500.0,0.00012998,2]
[326961574,1715647841706,-500.0,0.00012998,2]
[326961575,1715647841716,-500.0,0.00012998,2]
[326961576,1715647841725,-578.43,0.00012998,2]
[326961577,1715647841735,-477.87,0.00012998,2]
[326961578,1715647841744,-500.0,0.00012998,2]
[326961579,1715647841754,-500.0,0.00012998,2]
[326961580,1715647841764,-189.63,0.00012998,2]
[326961581,1715647841774,-500.0,0.00012998,2]
[326961582,1715647841785,-500.0,0.00012998,2]
[326961583,1715647841794,-1543.15,0.00012998,2]
[326961584,1715647841804,-9409.0114984,0.00012998,2]
[326961585,1715647841813,-39051.80984322,0.00012998,2]
[326961586,1715647842531,-12917.79144308,0.00012998,2]
[326961587,1715647842543,-434.09083591,0.00012999,2]
[326961588,1715647842553,-2620.71772121,0.00012999,2]
[326961589,1715647842564,-443.83778674,0.00012999,2]
[326961590,1715647842586,-150.0,0.00012727,2]
[326961591,1715647842596,-507.76259654,0.00012999,2]
[326961592,1715647842607,-1113.46114593,0.00012999,2]
[326961593,1715647842618,-1114.22074958,0.00012999,2]
[326961594,1715647842628,-500.0,0.00012999,2]
[326961595,1715647842637,-187.2,0.00012999,2]
[326961596,1715647842647,-592.24,0.00012999,2]
[326961597,1715647842656,-322.6,0.00012999,2]
[326961598,1715647842665,-500.0,0.00012999,2]
[326961599,1715647842675,-304.40321167,0.00012999,2]
[326961624,1715647843097,-68.91678833,0.00012999,2]
[326961625,1715647843106,-500.0,0.00012999,2]
[326961627,1715647843115,-500.0,0.00012999,2]
[326961629,1715647843125,-395.27781167,0.00012999,2]
[326961630,1715647843138,-104.72218833,0.00012999,2]
[326961631,1715647843148,-500.0,0.00012999,2]
[326961632,1715647843158,-500.0,0.00012999,2]
[326961633,1715647843167,-500.0,0.00012999,2]
[326961635,1715647843176,-500.0,0.00012999,2]
[326961637,1715647843185,-500.0,0.00012999,2]
[326961638,1715647843195,-287.04,0.00012999,2]
[326961639,1715647843204,-500.0,0.00012999,2]
[326961640,1715647843213,-500.0,0.00012999,2]
[326961641,1715647843223,-500.0,0.00012999,2]
[326961642,1715647843233,-500.0,0.00012999,2]
[326961643,1715647843242,-500.0,0.00012999,2]
[326961644,1715647843252,-500.0,0.00012999,2]
[326961645,1715647843262,-254.88447363,0.00012999,2]
[326961646,1715647843273,-245.11552637,0.00012999,2]
[326961647,1715647843282,-342.98681627,0.00012999,2]
[326961650,1715647843313,-157.01318373,0.00012999,2]
[326961652,1715647843322,-373.92144138,0.00012999,2]
[326961654,1715647843547,-150.0,0.0001277,2]
[326961655,1715647843556,-150.0,0.00012778,2]
[326961656,1715647843566,-150.0,0.00012799,2]
[326961657,1715647843575,-150.0,0.00012816,2]
[326961658,1715647843584,-150.0,0.00012859,2]
[326961659,1715647843593,-150.0,0.00012861,2]
[326961660,1715647843603,-150.0,0.00012861,2]
[326961661,1715647843612,-150.0,0.00012861,2]
[326961662,1715647843621,-150.0,0.00012864,2]
[326961663,1715647843631,-150.0,0.00012902,2]
[326961664,1715647843640,-150.0,0.00012917,2]
[326961665,1715647843649,-150.0,0.00012957,2]
[326961666,1715647843659,-150.0,0.00012978,2]
[326961667,1715647843668,-150.0,0.00012986,2]
[326961668,1715647843677,-126.07855862,0.00012999,2]
[326961669,1715647843686,-500.0,0.00012999,2]
[326961670,1715647843695,-475.6,0.00012999,2]
[326961671,1715647843704,-500.6,0.00012999,2]
[326961672,1715647843713,-1543.15,0.00012999,2]
[326961673,1715647843722,-1543.15,0.00012999,2]
[326961674,1715647843732,-1543.15,0.00012999,2]
[326961675,1715647843741,-1543.15,0.00012999,2]
[326961676,1715647843750,-125.12144138,0.00012999,2]
[326961677,1715647843762,-1418.02855862,0.00012999,2]
[326961678,1715647843772,-837.04764938,0.00012999,2]
[326961679,1715647843797,-706.10235062,0.00012999,2]
[326961680,1715647843807,-1543.15,0.00012999,2]
[326961681,1715647843815,-1543.15,0.00012999,2]
[326961682,1715647843825,-1543.15,0.00012999,2]
[326961683,1715647843834,-1543.15,0.00012999,2]
[326961684,1715647843843,-1543.15,0.00012999,2]
[326961685,1715647843853,-1543.15,0.00012999,2]
[326961686,1715647843863,-1543.15,0.00012999,2]
[326961687,1715647843872,-1543.15,0.00012999,2]
[326961688,1715647843882,-1543.15,0.00012999,2]
[326961689,1715647843892,-1543.15,0.00012999,2]
[326961690,1715647843901,-1543.15,0.00012999,2]
[326961691,1715647843911,-1543.15,0.00012999,2]
[326961692,1715647843920,-1543.15,0.00012999,2]
[326961693,1715647843929,-1543.15,0.00012999,2]
[326961694,1715647843938,-1543.15,0.00012999,2]
[326961695,1715647843948,-1543.23,0.00012999,2]
[326961696,1715647843957,-500.0,0.00012999,2]
[326961697,1715647843966,-490.94329955,0.00012999,2]
[326961698,1715647843989,-9.05670045,0.00012999,2]
[326961699,1715647843998,-500.0,0.00012999,2]
[326961700,1715647844007,-83.06329954,0.00012999,2]
[326961701,1715647844023,-539.49670046,0.00012999,2]
[326961702,1715647844032,-651.13625387,0.00012999,2]
[326961703,1715647844042,-6379.80704567,0.00013,2]
[326961704,1715647844295,-347775.05132142,0.00013,2]
[326961705,1715647844304,-223780.35096336,0.00013,2]
[326961706,1715647846403,-29544.9999999,0.00013,2]
[326961707,1715647909320,387.3250977,0.0003,120]
[326961708,1715648273386,-500.0,0.00011702,2]
[326961709,1715648273408,-500.0,0.00011702,2]
[326961710,1715648273430,-359.5,0.00011938,2]
[326961711,1715648273452,-342.86,0.00011962,2]
[326961712,1715648273475,-4248.42,0.00011974,2]
[326961713,1715648273497,-250.0,0.00012017,2]
[326961714,1715648273522,-181.93,0.00012038,2]
[326961715,1715648273543,-250.0,0.00012082,2]
[326961716,1715648273566,-663.04,0.00012158,2]
[326961717,1715648273588,-1675.05,0.00012268,2]
[326961718,1715648273609,-150.0,0.00012299,2]
[326961719,1715648273631,-473.99186772,0.000123,2]
[326961720,1715648273652,-217.67927478,0.000125,2]
[326961721,1715648273674,-500.0,0.00012524,2]
[326961722,1715648273695,-1000.0,0.00012776,2]
[326961723,1715648273716,-500.0,0.00012876,2]
[326961724,1715648273736,-500.0,0.00012876,2]
[326961725,1715648273757,-525.17,0.00012876,2]
[326961726,1715648273778,-500.0,0.00012876,2]
[326961727,1715648273798,-500.0,0.00012876,2]
[326961728,1715648273819,-527.77257723,0.00012876,2]
[326961729,1715648273841,-500.0,0.00012876,2]
[326961730,1715648273862,-500.0,0.00012876,2]
[326961731,1715648274107,-500.0,0.00012876,2]
[326961732,1715648274131,-500.0,0.00012876,2]
[326961733,1715648274153,-500.0,0.00012876,2]
[326961734,1715648274177,-500.0,0.00012876,2]
[326961735,1715648274200,-500.0,0.00012876,2]
[326961736,1715648274223,-500.0,0.00012876,2]
[326961737,1715648274244,-500.0,0.00012876,2]
[326961738,1715648274267,-500.0,0.00012876,2]
[326961739,1715648274289,-500.0,0.00012876,2]
[326961740,1715648274310,-500.0,0.00012876,2]
[326961741,1715648274331,-500.0,0.00012876,2]
[326961742,1715648274352,-500.0,0.00012876,2]
[326961743,1715648274374,-500.0,0.00012876,2]
[326961744,1715648274395,-500.0,0.00012876,2]
[326961745,1715648274417,-500.0,0.00012876,2]
[326961746,1715648274438,-500.0,0.00012876,2]
[326961747,1715648274459,-500.0,0.00012876,2]
[326961748,1715648274481,-200.0,0.00012896,2]
[326961749,1715648274505,-1000.0,0.00012896,2]
[326961750,1715648274528,-162.47791248,0.000129,2]
[326961751,1715648274551,-150.96885121,0.000129,2]
[326961752,1715648274574,-315.34326003,0.000129,2]
[326961753,1715648274596,-10172.28473134,0.000129,2]
[326961754,1715648274619,-500.0,0.00012904,2]
[326961755,1715648274642,-500.0,0.00012904,2]
[326961756,1715648274663,-500.0,0.00012904,2]
[326961757,1715648274685,-500.0,0.00012904,2]
[326961758,1715648274706,-500.0,0.00012904,2]
[326961759,1715648274728,-500.0,0.00012904,2]
[326961760,1715648274751,-307.86,0.00012904,2]
[326961761,1715648274773,-500.0,0.00012904,2]
[326961762,1715648274794,-500.0,0.00012904,2]
[326961763,1715648274817,-500.0,0.00012904,2]
[326961764,1715648274840,-500.0,0.00012904,2]
[326961765,1715648274864,-500.0,0.00012904,2]
[326961766,1715648274886,-500.0,0.00012904,2]
[326961767,1715648274908,-449.96071164,0.00012904,2]
[326961768,1715648274930,-500.0,0.00012904,2]
[326961769,1715648274951,-500.0,0.00012904,2]
[326961770,1715648274972,-500.0,0.00012904,2]
[326961771,1715648274994,-500.0,0.00012904,2]
[326961772,1715648275016,-500.0,0.00012904,2]
[326961773,1715648275039,-348.59,0.00012904,2]
[326961774,1715648275062,-500.0,0.00012904,2]
[326961775,1715648275082,-500.0,0.00012904,2]
[326961776,1715648275103,-500.0,0.00012904,2]
[326961777,1715648275124,-500.0,0.00012904,2]
[326961778,1715648275144,-5401.44,0.00012958,2]
[326961779,1715648275167,-150.0,0.00012971,2]
[326961780,1715648275193,-43911.1222084,0.00012996,2]
[326961781,1715648275214,-3064.53860517,0.00012996,2]
[326961785,1715648793993,332.83812885,0.0003,120]
[326961790,1715648979401,179.64,0.00010959,2]
[326961807,1715649032181,-386.90145782,0.00011499,2]
[326961809,1715649032191,-1334.62389622,0.00011499,2]
[326961810,1715649032201,-155.0,0.00011599,2]
[326961811,1715649032210,-2327.05522688,0.00011599,2]
[326961812,1715649032220,-911.24447169,0.00011599,2]
[326961813,1715649032231,-2147.66633504,0.00011599,2]
[326961814,1715649032241,-534.31132764,0.00011599,2]
[326961815,1715649032251,-343.02233732,0.000116,2]
[326961816,1715649032262,-704.62238723,0.000116,2]
[326961817,1715649032274,-10711.86247576,0.000116,2]
[326961818,1715649032284,-1063.19716229,0.00011601,2]
[326961819,1715649032293,-500.0,0.00011702,2]
[326961820,1715649032303,-500.0,0.00011702,2]
[326961821,1715649032313,-2950.0,0.00012,2]
[326961822,1715649032322,-530.44,0.00012024,2]
[326961823,1715649032331,-239.33,0.00012109,2]
[326961824,1715649032341,-469.56,0.00012132,2]
[326961825,1715649032350,-1978.438858,0.00012804,2]
[326961826,1715649032359,-150.0,0.00012869,2]
[326961827,1715649032368,-3000.0,0.0001287,2]
[326961828,1715649032378,-500.0,0.00012876,2]
[326961829,1715649032387,-316.92723548,0.00012876,2]
[326961830,1715649032397,-464.37,0.00012876,2]
[326961831,1715649032406,-500.0,0.00012876,2]
[326961832,1715649032414,-500.0,0.00012876,2]
[326961833,1715649032423,-500.0,0.00012876,2]
[326961834,1715649032437,-500.0,0.00012876,2]
[326961835,1715649032446,-500.0,0.00012876,2]
[326961836,1715649032455,-3711.688,0.00012882,2]
[326961837,1715649032465,-12721.0,0.000129,2]
[326961838,1715649032475,-195.73863075,0.000129,2]
[326961839,1715649032484,-275.48,0.00012904,2]
[326961840,1715649032494,-500.0,0.00012904,2]
[326961841,1715649032503,-257.87594014,0.00012904,2]
[326961842,1715649032512,-150.99,0.00012904,2]
[326961844,1715649032525,-152.0,0.00012938,3]
[326961846,1715649032534,-10000.0,0.00012977,2]
[326961848,1715649032543,-155.36852506,0.0001299,2]
[326961850,1715649032554,-155.36852506,0.0001299,2]
[326961852,1715649032563,-154.12,0.0001299,2]
[326961854,1715649032572,-154.12,0.0001299,2]
[326961856,1715649032581,-154.12,0.0001299,2]
[326961858,1715649032590,-94197.19729971,0.00012996,2]
[326961860,1715649032600,-365.84,0.00012996,2]
[326961862,1715649032608,-29613.7329327,0.00012996,2]
[326961864,1715649032617,-2490.425859,0.00012996,2]
[326961866,1715649032627,-196.11799998,0.00012998,2]
[326961867,1715649032636,-622.84572652,0.00012998,2]
[326961869,1715649032645,-832.06593303,0.00012998,2]
[326961872,1715649032654,-919.93467725,0.00012998,2]
[326961873,1715649032664,-449.678779,0.00012998,2]
[326961875,1715649032673,-317.66306561,0.00012998,2]
[326961877,1715649032682,-420.49721227,0.00012998,2]
[326961879,1715649032691,-712.45898214,0.00012998,2]
[326961881,1715649032701,-305.49089886,0.00012998,2]
[326961882,1715649032710,-3079.49301559,0.00012999,2]
[326961883,1715649032720,-217.04541795,0.00012999,2]
[326961884,1715649032729,-5292.28916626,0.00012999,2]
[326961885,1715649032739,-500.0,0.00012999,2]
[326961886,1715649032748,-500.0,0.00012999,2]
[326961887,1715649032757,-500.0,0.00012999,2]
[326961888,1715649032766,-601.33,0.00012999,2]
[326961889,1715649032776,-342.59,0.00012999,2]
[326961890,1715649032785,-500.0,0.00012999,2]
[326961891,1715649032794,-500.0,0.00012999,2]
[326961892,1715649032804,-500.00000096,0.00012999,2]
[326961893,1715649032813,-500.0,0.00012999,2]
[326961894,1715649032823,-500.0,0.00012999,2]
[326961895,1715649032832,-500.0,0.00012999,2]
[326961896,1715649032841,-500.0,0.00012999,2]
[326961897,1715649032850,-185.63299596,0.00012999,2]
[326961898,1715649032860,-500.0,0.00012999,2]
[326961899,1715649032869,-500.0,0.00012999,2]
[326961900,1715649032879,-291.06,0.00012999,2]
[326961901,1715649032889,-500.0,0.00012999,2]
[326961902,1715649032898,-339.2,0.00012999,2]
[326961903,1715649032907,-500.0,0.00012999,2]
[326961904,1715649032917,-228.31952705,0.00012999,2]
[326961905,1715649032928,-500.0,0.00012999,2]
[326961906,1715649032937,-370.83244059,0.00012999,2]
[326961907,1715649032946,-478.25071437,0.00012999,2]
[326961908,1715649032955,-500.0,0.00012999,2]
[326961909,1715649032964,-500.0,0.00012999,2]
[326961910,1715649032974,-500.0,0.00012999,2]
[326961911,1715649032983,-231.6,0.00012999,2]
[326961912,1715649032992,-317.58512763,0.00012999,2]
[326961913,1715649033001,-500.0,0.00012999,2]
[326961914,1715649033011,-500.0,0.00012999,2]
[326961915,1715649033020,-500.0,0.00012999,2]
[326961916,1715649033030,-500.0,0.00012999,2]
[326961917,1715649033039,-500.0,0.00012999,2]
[326961918,1715649033049,-500.0,0.00012999,2]
[326961919,1715649033059,-500.0,0.00012999,2]
[326961920,1715649033069,-500.0,0.00012999,2]
[326961921,1715649033078,-500.0,0.00012999,2]
[326961922,1715649033088,-500.0,0.00012999,2]
[326961923,1715649033099,-500.0,0.00012999,2]
[326961924,1715649033109,-500.0,0.00012999,2]
[326961925,1715649033119,-500.0,0.00012999,2]
[326961926,1715649033128,-154.55151792,0.00012999,2]
[326961927,1715649033138,-500.0,0.00012999,2]
[326961928,1715649033148,-252.64,0.00012999,2]
[326961929,1715649033158,-500.0,0.00012999,2]
[326961930,1715649033167,-363.89,0.00012999,2]
[326961931,1715649033176,-500.0,0.00012999,2]
[326961932,1715649033185,-197.53137354,0.00012999,2]
[326961933,1715649033195,-503.0,0.00013,2]
[326961934,1715649033204,-264560.25109908,0.00013,2]
[326961935,1715649033217,-25549.13574594,0.00013,2]
[326961936,1715649033228,-956.33828,0.00013,2]
[326961937,1715649033239,-919.32000046,0.00013,2]
[326961938,1715649033250,-630.85,0.00013,2]
[326961939,1715649033261,-404.0000001,0.00013,2]
[326961940,1715649033272,-326.34,0.00013,2]
[326961941,1715649033284,-420.0,0.00013,2]
[326961942,1715649033295,-13125.53380091,0.00013,2]
[326961943,1715649033316,-261.36402809,0.00013,2]
[326961944,1715649033327,-1592.4647743,0.00013,2]
[326961945,1715649033338,-647.77,0.00013,2]
[326961946,1715649033349,-522.67520343,0.00013,2]
[326961947,1715649033361,-768.59427376,0.00013,2]
[326961948,1715649033372,-2220.21008655,0.00013,2]
[326961949,1715649033383,-2808.88052821,0.00013,2]
[326961950,1715649035568,298.69141915,0.00010959,2]
[326961954,1715649038240,-4065.99204353,0.00013,2]
[326961955,1715649038254,-7360.33139325,0.00013,2]
[326961956,1715649038267,-372.33325024,0.00013,2]
[326961957,1715649038453,-3471.76585,0.00013,2]
[326961958,1715649038464,-258.67387661,0.00013,2]
[326962000,1715649039047,-351296.27995855,0.00013,2]
[326962002,1715649039057,-2053047.83609074,0.00013,2]
[326962007,1715649039093,-2141.31096753,0.00013,2]
[326962011,1715649040058,548.33711333,0.00010959,2]
[326962013,1715649040322,-19430.33023587,0.00013,2]
[326962014,1715649040333,-27469.10975812,0.00013,2]
[326962015,1715649040408,-823.17260833,0.00013,2]
[326962018,1715649041277,-1578.91344973,0.00013,2]
[326962019,1715649041309,-312.16935958,0.00013,2]
[326962020,1715649041320,-2201.96718829,0.00013,2]
[326962021,1715649041331,-2377.98218144,0.00013,2]
[326962022,1715649041342,-1335.34222515,0.00013,2]
[326962023,1715649041370,-20000.0,0.00013,2]
[326962032,1715649043275,-329.70014336,0.00013,2]
[326962035,1715649043286,-880.36175698,0.00013,2]
[326962036,1715649043352,-1502.14020389,0.00013,2]
[326962037,1715649043363,-1955.28833964,0.00013,2]
[326962038,1715649043374,-596.8060094,0.00013,2]
[326962039,1715649043385,-1049.700003,0.00013,2]
[326962040,1715649043397,-450.180002,0.00013,2]
[326962041,1715649043408,-453.999994,0.00013,2]
[326962042,1715649043420,-342.3,0.00013,2]
[326962043,1715649043432,-337.80377251,0.00013,2]
[326962044,1715649043499,-414.42854301,0.00013,2]
[326962045,1715649043511,-921.87323308,0.00013,2]
[326962046,1715649043570,-814.26213275,0.00013,2]
[326962047,1715649043582,-1017.6830018,0.00013,2]
[326962048,1715649043595,-1176.28360426,0.00013,2]
[326962049,1715649043643,-214510.57081328,0.00013,2]
[326962050,1715649043654,-6052.53318049,0.00013,2]
[326962051,1715649043665,-571555.40228478,0.00013,2]
[326962055,1715649046317,-254.86173603,0.00012999,2]
[326962056,1715649046328,-278.78037534,0.00012999,2]
[326962057,1715649046337,-136.21962466,0.00012999,2]
[326962058,1715649046349,-569.64,0.00012999,2]
[326962059,1715649046360,-279.33998489,0.00012999,2]
[326962060,1715649046370,-44410.51754461,0.00013,2]
[326962061,1715649046396,-308.25,0.00013,2]
[326962062,1715649046408,-10797.70756412,0.00013,2]
[326962063,1715649046421,-13272.05130533,0.00013,2]
[326962064,1715649046433,-5102.48764898,0.00013,2]
[326962065,1715649046484,-431.60659171,0.00013,2]
[326962066,1715649046497,-3282.25773088,0.00013,2]
[326962067,1715649046568,-1362.98079444,0.00013,2]
[326962068,1715649046580,-714.2364726,0.00013,2]
[326962069,1715649046591,-470650.724411,0.00013,2]
[326962070,1715649049454,298.69141915,0.00010959,2]
[326962071,1715649060049,546.51090519,0.00010959,2]
[326962072,1715649063952,299.14638335,0.00010959,2]
[326962073,1715649072842,17991.75386871,0.00010959,2]
[326962083,1715649153523,156.23,9.737e-05,2]
[326962084,1715649181521,-7000.0,0.00032,120]
[326962085,1715649200820,2000.0,0.00013,30]
[326962086,1715649201988,2000.0,0.0001301,30]
[326962087,1715649203187,2000.0,0.0001302,30]
[326962088,1715649204079,2000.0,0.0001303,30]
[326962089,1715649205478,2448.528149,0.0001304,30]
[326962102,1715649791646,153.68,0.00011235,2]
[326962103,1715649791893,153.68,0.00011246,2]
[326962104,1715649792851,153.68,0.00011257,2]
[326962105,1715649793095,153.68,0.00011268,2]
[326962106,1715649793357,153.68,0.0001128,2]
[326962107,1715649793597,153.68,0.00011291,2]
[326962108,1715649794296,150.0,0.00013,30]
[326962109,1715649815494,158.88,0.00011271,2]
[326962116,1715649991550,424.36,0.0001125,2]
[326962117,1715650027756,23139.0,0.00011273,2]
[326962118,1715650072314,46895.75,0.00011383,2]
[326962127,1715650220572,959.91364377,0.00011383,2]
[326962131,1715650232880,-685.76902713,0.00011609,2]
[326962132,1715650232890,-155.0,0.0001161,2]
[326962133,1715650232899,-2327.05522688,0.0001161,2]
[326962134,1715650232909,-236.0,0.00011628,2]
[326962135,1715650232918,-155.82,0.00011671,2]
[326962136,1715650232927,-2232.68718383,0.00011685,2]
[326962137,1715650232938,-17364.17654903,0.00011685,2]
[326962138,1715650232947,-575.64,0.00011686,2]
[326962139,1715650232958,-500.0,0.00011702,2]
[326962140,1715650232967,-500.0,0.00011702,2]
[326962141,1715650232976,-155.82,0.00011707,2]
[326962142,1715650232986,-6982.66,0.00011707,2]
[326962143,1715650232996,-167.29,0.00011708,2]
[326962144,1715650233005,-155.82,0.00011743,2]
[326962145,1715650233015,-499.99,0.00011743,2]
[326962146,1715650233024,-155.82,0.00011779,2]
[326962147,1715650233033,-155.82,0.00011814,2]
[326962148,1715650233042,-155.82,0.0001185,2]
[326962149,1715650233052,-155.82,0.00011886,2]
[326962150,1715650233063,-155.82,0.00011922,2]
[326962151,1715650233071,-155.82,0.00011957,2]
[326962152,1715650233080,-155.82,0.00011993,2]
[326962153,1715650233089,-155.82,0.00012029,2]
[326962154,1715650233099,-155.82,0.00012065,2]
[326962155,1715650233108,-155.82,0.00012101,2]
[326962156,1715650233118,-155.82,0.00012136,2]
[326962157,1715650233128,-155.82,0.00012172,2]
[326962158,1715650233138,-155.82,0.00012208,2]
[326962159,1715650233147,-155.82,0.00012244,2]
[326962160,1715650233157,-155.82,0.0001228,2]